lending/lending_fUSD_20240507
["ID","MTS","AMOUNT","RATE_DAILY","PERIOD"]
[326551090,1715105562329,-500.0,0.00019726,2]
[326551091,1715105562339,-500.0,0.00019726,2]
[326551092,1715105562352,-652.58,0.00019726,2]
[326551093,1715105562363,-714.55,0.00019726,2]
[326551094,1715105562382,-1542.46,0.00019726,2]
[326551095,1715105562392,-590.41,0.00019726,2]
[326551096,1715105562404,-500.0,0.00019726,2]
[326551097,1715105562415,-957.15,0.00019726,2]
[326551098,1715105562438,-500.0,0.00019726,2]
[326551099,1715105562451,-500.0,0.00019726,2]
[326551100,1715105562461,-500.0,0.00019726,2]
[326551101,1715105562472,-500.0,0.00019726,2]
[326551102,1715105562483,-909.47,0.00019726,2]
[326551103,1715105562505,-500.0,0.00019726,2]
[326551104,1715105562535,-619.98,0.00019726,2]
[326551105,1715105562549,-600.34,0.00019726,2]
[326551106,1715105562574,-506.90207116,0.00019726,2]
[326551107,1715105562589,-500.0,0.00019726,2]
[326551108,1715105562601,-512.88,0.00019726,2]
[326551109,1715105562612,-500.0,0.00019726,2]
[326551110,1715105562625,-500.0,0.00019726,2]
[326551111,1715105562635,-502.72,0.00019726,2]
[326551112,1715105562650,-500.0,0.00019726,2]
[326551113,1715105562689,-500.0,0.00019726,2]
[326551114,1715105562705,-500.0,0.00019726,2]
[326551115,1715105562723,-500.0,0.00019726,2]
[326551116,1715105562735,-608.4,0.00019726,2]
[326551117,1715105562749,-775.54,0.00019726,2]
[326551118,1715105562761,-744.29,0.00019726,2]
[326551119,1715105562772,-635.25,0.00019726,2]
[326551120,1715105562789,-500.0,0.00019726,2]
[326551121,1715105562800,-1234.34,0.00019726,2]
[326551122,1715105562812,-675.56,0.00019726,2]
[326551123,1715105562824,-947.66,0.00019726,2]
[326551124,1715105562835,-996.04,0.00019726,2]
[326551125,1715105562846,-500.0,0.00019726,2]
[326551126,1715105562856,-506.14464602,0.00019726,2]
[326551127,1715105562871,-500.0,0.00019726,2]
[326551128,1715105562885,-500.0,0.00019726,2]
[326551129,1715105562921,-2194.28,0.00019726,2]
[326551130,1715105562945,-500.0,0.00019726,2]
[326551131,1715105562958,-500.0,0.00019726,2]
[326551132,1715105562983,-500.0,0.00019726,2]
[326551133,1715105562994,-603.04,0.00019726,2]
[326551134,1715105563022,-1659.65,0.00019726,2]
[326551135,1715105563033,-500.0,0.00019726,2]
[326551136,1715105563045,-983.79,0.00019726,2]
[326551137,1715105563058,-500.0,0.00019726,2]
[326551138,1715105563068,-880.18,0.00019726,2]
[326551139,1715105563079,-1117.76,0.00019726,2]
[326551140,1715105563097,-500.0,0.00019726,2]
[326551141,1715105563108,-617.76,0.00019726,2]
[326551142,1715105563119,-500.0,0.00019726,2]
[326551143,1715105563140,-1567.91,0.00019726,2]
[326551144,1715105563173,-666.96,0.00019726,2]
[326551145,1715105563185,-500.0,0.00019726,2]
[326551146,1715105563209,-500.0,0.00019726,2]
[326551147,1715105563219,-500.0,0.00019726,2]
[326551148,1715105563251,-2152.69,0.00019726,2]
[326551149,1715105563263,-500.0,0.00019726,2]
[326551150,1715105563274,-500.0,0.00019726,2]
[326551151,1715105563302,-604.85,0.00019726,2]
[326551152,1715105563330,-896.53,0.00019726,2]
[326551153,1715105563343,-500.0,0.00019726,2]
[326551154,1715105563354,-500.0,0.00019726,2]
[326551155,1715105563368,-1115.16,0.00019726,2]
[326551156,1715105563388,-500.0,0.00019726,2]
[326551157,1715105563400,-500.0,0.00019726,2]
[326551158,1715105563412,-500.0,0.00019726,2]
[326551159,1715105563429,-622.4,0.00019726,2]
[326551160,1715105563465,-500.0,0.00019726,2]
[326551161,1715105563477,-528.28400542,0.00019726,2]
[326551162,1715105563497,-1145.35,0.00019726,2]
[326551163,1715105563511,-2862.89,0.00019726,2]
[326551164,1715105563530,-938.24,0.00019726,2]
[326551165,1715105563543,-500.0,0.00019726,2]
[326551166,1715105563553,-500.0,0.00019726,2]
[326551167,1715105563574,-500.0,0.00019726,2]
[326551168,1715105563591,-500.0,0.00019726,2]
[326551169,1715105563607,-508.31649812,0.00019726,2]
[326551170,1715105563619,-917.06,0.00019726,2]
[326551171,1715105563631,-501.99,0.00019726,2]
[326551172,1715105563642,-500.0,0.00019726,2]
[326551173,1715105563660,-500.0,0.00019726,2]
[326551174,1715105563693,-599.9,0.00019726,2]
[326551175,1715105563711,-500.0,0.00019726,2]
[326551176,1715105563724,-663.53,0.00019726,2]
[326551177,1715105563735,-783.84,0.00019726,2]
[326551178,1715105563747,-500.0,0.00019726,2]
[326551179,1715105563760,-500.0,0.00019726,2]
[326551180,1715105563772,-500.0,0.00019726,2]
[326551181,1715105563783,-500.0,0.00019726,2]
[326551182,1715105563794,-654.08,0.00019726,2]
[326551183,1715105563813,-679.25,0.00019726,2]
[326551184,1715105563825,-500.0,0.00019726,2]
[326551185,1715105563837,-500.0,0.00019726,2]
[326551186,1715105563851,-720.33,0.00019726,2]
[326551187,1715105563869,-770.79,0.00019726,2]
[326551188,1715105563881,-1458.07,0.00019726,2]
[326551189,1715105563896,-729.57,0.00019726,2]
[326551190,1715105563910,-1206.99,0.00019726,2]
[326551191,1715105563931,-500.0,0.00019726,2]
[326551192,1715105563958,-633.11,0.00019726,2]
[326551193,1715105563970,-500.0,0.00019726,2]
[326551194,1715105563981,-901.99,0.00019726,2]
[326551195,1715105563992,-2291.75,0.00019726,2]
[326551196,1715105564004,-500.0,0.00019726,2]
[326551197,1715105564016,-786.7,0.00019726,2]
[326551198,1715105564037,-874.1,0.00019726,2]
[326551199,1715105564056,-500.0,0.00019726,2]
[326551200,1715105564076,-1498.69,0.00019726,2]
[326551201,1715105564089,-1025.17,0.00019726,2]
[326551202,1715105564100,-506.89639807,0.00019726,2]
[326551203,1715105564122,-500.0,0.00019726,2]
[326551204,1715105564132,-500.0,0.00019726,2]
[326551205,1715105564143,-500.0,0.00019726,2]
[326551206,1715105564192,-507.2919466,0.00019726,2]
[326551207,1715105564203,-1119.86,0.00019726,2]
[326551208,1715105564217,-866.47,0.00019726,2]
[326551209,1715105564228,-505.44016393,0.00019726,2]
[326551210,1715105564239,-500.0,0.00019726,2]
[326551211,1715105564272,-500.0,0.00019726,2]
[326551212,1715105564283,-850.08,0.00019726,2]
[326551213,1715105564307,-789.26,0.00019726,2]
[326551214,1715105564320,-507.70052414,0.00019726,2]
[326551215,1715105564339,-500.0,0.00019726,2]
[326551216,1715105564353,-500.0,0.00019726,2]
[326551217,1715105564364,-500.0,0.00019726,2]
[326551218,1715105564375,-500.0,0.00019726,2]
[326551219,1715105564387,-500.0,0.00019726,2]
[326551220,1715105564414,-500.0,0.00019726,2]
[326551221,1715105564441,-1246.83,0.00019726,2]
[326551222,1715105564453,-602.95,0.00019726,2]
[326551223,1715105564466,-578.54,0.00019726,2]
[326551224,1715105564478,-628.97,0.00019726,2]
[326551225,1715105564487,-500.0,0.00019726,2]
[326551226,1715105564516,-500.0,0.00019726,2]
[326551227,1715105564534,-500.0,0.00019726,2]
[326551228,1715105564548,-507.56570713,0.00019726,2]
[326551229,1715105564560,-857.63,0.00019726,2]
[326551230,1715105564577,-500.0,0.00019726,2]
[326551231,1715105564597,-1237.72,0.00019726,2]
[326551232,1715105564610,-1373.85,0.00019726,2]
[326551233,1715105564624,-1020.3,0.00019726,2]
[326551234,1715105564644,-500.0,0.00019726,2]
[326551235,1715105564655,-507.89217485,0.00019726,2]
[326551236,1715105564671,-500.0,0.00019726,2]
[326551237,1715105564687,-514.16,0.00019726,2]
[326551238,1715105564699,-1646.07,0.00019726,2]
[326551239,1715105564721,-2048.87,0.00019726,2]
[326551240,1715105564732,-6014.47,0.00019726,2]
[326551241,1715105564750,-500.0,0.00019726,2]
[326551242,1715105564768,-539.47,0.00019726,2]
[326551243,1715105564781,-1036.58,0.00019726,2]
[326551244,1715105564794,-1252.57,0.00019726,2]
[326551245,1715105564805,-500.0,0.00019726,2]
[326551246,1715105564816,-665.98,0.00019726,2]
[326551247,1715105564826,-204.42266767,0.00019726,2]
[326551248,1715105564839,-500.0,0.00019726,2]
[326551249,1715105564849,-508.14271343,0.00019726,2]
[326551250,1715105564872,-1013.84,0.00019726,2]
[326551251,1715105564883,-150.0,0.00019726,2]
[326551252,1715105564893,-536.43454115,0.00019726,2]
[326551253,1715105564903,-531.24,0.00019726,2]
[326551254,1715105564913,-500.0,0.00019726,2]
[326551255,1715105564923,-1038.38,0.00019726,2]
[326551256,1715105564933,-11885.09,0.00019726,2]
[326551257,1715105564960,-500.0,0.00019726,2]
[326551258,1715105564970,-500.0,0.00019726,2]
[326551259,1715105564986,-500.0,0.00019726,2]
[326551260,1715105565000,-519.72,0.00019726,2]
[326551261,1715105565019,-500.0,0.00019726,2]
[326551262,1715105565030,-500.0,0.00019726,2]
[326551263,1715105565040,-500.0,0.00019726,2]
[326551264,1715105565054,-500.0,0.00019726,2]
[326551265,1715105565065,-7456.46,0.00019726,2]
[326551266,1715105565075,-500.0,0.00019726,2]
[326551267,1715105565093,-500.0,0.00019726,2]
[326551268,1715105565119,-8356.91,0.00019726,2]
[326551269,1715105565130,-500.0,0.00019726,2]
[326551270,1715105565154,-1305.53,0.00019726,2]
[326551271,1715105565164,-785.17,0.00019726,2]
[326551272,1715105565175,-500.0,0.00019726,2]
[326551273,1715105565187,-500.0,0.00019726,2]
[326551274,1715105565197,-958.49,0.00019726,2]
[326551275,1715105565209,-2589.73,0.00019726,2]
[326551276,1715105565219,-762.88,0.00019726,2]
[326551277,1715105565230,-2572.94,0.00019726,2]
[326551278,1715105565246,-500.0,0.00019726,2]
[326551279,1715105565267,-500.0,0.00019726,2]
[326551280,1715105565286,-500.0,0.00019726,2]
[326551281,1715105565306,-513.88,0.00019726,2]
[326551282,1715105565317,-790.81,0.00019726,2]
[326551283,1715105565331,-896.68,0.00019726,2]
[326551284,1715105565342,-544.84,0.00019726,2]
[326551285,1715105565355,-500.0,0.00019726,2]
[326551286,1715105565377,-500.0,0.00019726,2]
[326551287,1715105565391,-500.0,0.00019726,2]
[326551288,1715105565409,-500.0,0.00019726,2]
[326551289,1715105565421,-1985.12,0.00019726,2]
[326551290,1715105565444,-500.0,0.00019726,2]
[326551291,1715105565454,-500.0,0.00019726,2]
[326551292,1715105565464,-500.0,0.00019726,2]
[326551293,1715105565474,-1258.11,0.00019726,2]
[326551294,1715105565508,-1700.29,0.00019726,2]
[326551295,1715105565519,-4651.14,0.00019726,2]
[326551296,1715105565534,-500.0,0.00019726,2]
[326551297,1715105565546,-500.0,0.00019726,2]
[326551298,1715105565557,-500.0,0.00019726,2]
[326551299,1715105565570,-500.0,0.00019726,2]
[326551300,1715105565583,-676.07,0.00019726,2]
[326551301,1715105565594,-959.08,0.00019726,2]
[326551302,1715105565611,-734.9,0.00019726,2]
[326551303,1715105565621,-500.0,0.00019726,2]
[326551304,1715105565635,-500.0,0.00019726,2]
[326551305,1715105565653,-698.7,0.00019726,2]
[326551306,1715105565825,-660.1,0.00019726,2]
[326551307,1715105565843,-663.69,0.00019726,2]
[326551308,1715105565872,-735.96,0.00019726,2]
[326551309,1715105565897,-20091.28,0.00019726,2]
[326551310,1715105565921,-8060.34,0.00019726,2]
[326551311,1715105565933,-1109.96,0.00019726,2]
[326551312,1715105565973,-2834.12,0.00019726,2]
[326551313,1715105565984,-14442.67,0.00019726,2]
[326551314,1715105565995,-500.0,0.00019726,2]
[326551315,1715105566006,-1349.78,0.00019726,2]
[326551316,1715105566017,-1229.5,0.00019726,2]
[326551317,1715105566033,-500.0,0.00019726,2]
[326551318,1715105566049,-998.22,0.00019726,2]
[326551319,1715105566059,-500.0,0.00019726,2]
[326551320,1715105566086,-657.39,0.00019726,2]
[326551321,1715105566098,-500.0,0.00019726,2]
[326551322,1715105566111,-1555.88,0.00019726,2]
[326551323,1715105566122,-500.0,0.00019726,2]
[326551324,1715105566139,-500.0,0.00019726,2]
[326551325,1715105566150,-500.0,0.00019726,2]
[326551326,1715105566161,-2045.92,0.00019726,2]
[326551327,1715105566175,-733.48,0.00019726,2]
[326551328,1715105566186,-44695.36,0.00019726,2]
[326551329,1715105566202,-2381.36,0.00019726,2]
[326551330,1715105566220,-1025.11,0.00019726,2]
[326551331,1715105566232,-500.0,0.00019726,2]
[326551332,1715105566242,-500.0,0.00019726,2]
[326551333,1715105566254,-500.0,0.00019726,2]
[326551334,1715105566271,-500.0,0.00019726,2]
[326551335,1715105566302,-1880.09,0.00019726,2]
[326551336,1715105566324,-1066.97,0.00019726,2]
[326551337,1715105566336,-1387.28,0.00019726,2]
[326551338,1715105566347,-575.88,0.00019726,2]
[326551339,1715105566362,-500.0,0.00019726,2]
[326551340,1715105566376,-2096.8,0.00019726,2]
[326551341,1715105566390,-500.0,0.00019726,2]
[326551342,1715105566410,-500.0,0.00019726,2]
[326551343,1715105566431,-2732.08,0.00019726,2]
[326551344,1715105566445,-840.9,0.00019726,2]
[326551345,1715105566456,-1050.6,0.00019726,2]
[326551346,1715105566467,-835.2,0.00019726,2]
[326551347,1715105566486,-506.11548198,0.00019726,2]
[326551348,1715105566525,-3507.75,0.00019726,2]
[326551349,1715105566541,-2837.98,0.00019726,2]
[326551350,1715105566552,-500.0,0.00019726,2]
[326551351,1715105566565,-500.0,0.00019726,2]
[326551352,1715105566577,-2913.55,0.00019726,2]
[326551353,1715105566590,-500.0,0.00019726,2]
[326551354,1715105566601,-825.96,0.00019726,2]
[326551355,1715105566612,-2404.42,0.00019726,2]
[326551356,1715105566625,-1125.59,0.00019726,2]
[326551357,1715105566641,-500.0,0.00019726,2]
[326551358,1715105566663,-500.0,0.00019726,2]
[326551359,1715105566682,-2326.09,0.00019726,2]
[326551360,1715105566698,-500.0,0.00019726,2]
[326551361,1715105566710,-678.75,0.00019726,2]
[326551362,1715105566721,-5312.39,0.00019726,2]
[326551363,1715105566736,-2929.62,0.00019726,2]
[326551364,1715105566747,-500.0,0.00019726,2]
[326551365,1715105566759,-2251.89,0.00019726,2]
[326551366,1715105566777,-500.0,0.00019726,2]
[326551367,1715105566789,-1192.04,0.00019726,2]
[326551368,1715105566814,-995.1,0.00019726,2]
[326551369,1715105566827,-1422.68,0.00019726,2]
[326551370,1715105566837,-500.0,0.00019726,2]
[326551371,1715105566850,-5007.09,0.00019726,2]
[326551372,1715105566861,-7636.26,0.00019726,2]
[326551373,1715105566872,-6856.81,0.00019726,2]
[326551374,1715105566885,-4930.24,0.00019726,2]
[326551375,1715105566898,-1988.76,0.00019726,2]
[326551376,1715105566909,-500.0,0.00019726,2]
[326551377,1715105566920,-500.0,0.00019726,2]
[326551378,1715105566937,-500.0,0.00019726,2]
[326551379,1715105566949,-2775.11,0.00019726,2]
[326551380,1715105566987,-500.0,0.00019726,2]
[326551381,1715105567036,-1155.41,0.00019726,2]
[326551382,1715105567056,-1157.16,0.00019726,2]
[326551383,1715105567067,-790.84,0.00019726,2]
[326551384,1715105567078,-29416.15,0.00019726,2]
[326551385,1715105567121,-500.0,0.00019726,2]
[326551386,1715105567131,-500.0,0.00019726,2]
[326551387,1715105567143,-1981.97,0.00019726,2]
[326551388,1715105567157,-500.0,0.00019726,2]
[326551389,1715105567171,-500.0,0.00019726,2]
[326551390,1715105567190,-500.0,0.00019726,2]
[326551391,1715105567202,-507.35294929,0.00019726,2]
[326551392,1715105567220,-794.77,0.00019726,2]
[326551393,1715105567232,-500.0,0.00019726,2]
[326551394,1715105567244,-6716.37,0.00019726,2]
[326551395,1715105567258,-500.0,0.00019726,2]
[326551396,1715105567275,-1179.96,0.00019726,2]
[326551397,1715105567290,-1794.84,0.00019726,2]
[326551398,1715105567301,-500.0,0.00019726,2]
[326551399,1715105567315,-1634.78,0.00019726,2]
[326551400,1715105567326,-1100.13,0.00019726,2]
[326551401,1715105567336,-500.0,0.00019726,2]
[326551402,1715105567348,-500.0,0.00019726,2]
[326551403,1715105567361,-715.85,0.00019726,2]
[326551404,1715105567372,-500.0,0.00019726,2]
[326551405,1715105567383,-5160.56,0.00019726,2]
[326551406,1715105567394,-1024.0,0.00019726,2]
[326551407,1715105567405,-562.05,0.00019726,2]
[326551408,1715105567417,-4446.43,0.00019726,2]
[326551409,1715105567428,-500.0,0.00019726,2]
[326551410,1715105567441,-500.0,0.00019726,2]
[326551411,1715105567452,-500.0,0.00019726,2]
[326551412,1715105567463,-500.0,0.00019726,2]
[326551413,1715105567480,-719.72,0.00019726,2]
[326551414,1715105567490,-500.0,0.00019726,2]
[326551415,1715105567501,-441.38546499,0.00019726,2]
[326551416,1715105567516,-1668.41,0.00019726,2]
[326551417,1715105567529,-506.23956394,0.00019726,2]
[326551418,1715105567540,-504.8673094,0.00019726,2]
[326551419,1715105567550,-500.0,0.00019726,2]
[326551420,1715105567567,-2897.06,0.00019726,2]
[326551421,1715105567578,-2273.27,0.00019726,2]
[326551422,1715105567592,-2266.91,0.00019726,2]
[326551423,1715105567608,-591.11,0.00019726,2]
[326551424,1715105567619,-2711.45,0.00019726,2]
[326551425,1715105567642,-2878.06,0.00019726,2]
[326551426,1715105567659,-500.0,0.00019726,2]
[326551427,1715105567676,-2747.7,0.00019726,2]
[326551428,1715105567687,-2730.02,0.00019726,2]
[326551429,1715105567702,-500.0,0.00019726,2]
[326551430,1715105567713,-680.44,0.00019726,2]
[326551431,1715105567729,-509.19578663,0.00019726,2]
[326551432,1715105567744,-2436.75,0.00019726,2]
[326551433,1715105567755,-2730.02,0.00019726,2]
[326551434,1715105567768,-895.93,0.00019726,2]
[326551435,1715105567779,-1652.52,0.00019726,2]
[326551436,1715105567790,-549.07,0.00019726,2]
[326551437,1715105567802,-519.73,0.00019726,2]
[326551438,1715105567815,-500.0,0.00019726,2]
[326551439,1715105567830,-1304.96,0.00019726,2]
[326551440,1715105567849,-1593.18,0.00019726,2]
[326551441,1715105567861,-1412.02,0.00019726,2]
[326551442,1715105567925,-762.1,0.00019726,2]
[326551443,1715105567935,-38643.67,0.00019726,2]
[326551444,1715105567946,-500.0,0.00019726,2]
[326551445,1715105567957,-3669.89,0.00019726,2]
[326551446,1715105567968,-500.0,0.00019726,2]
[326551447,1715105567979,-151.0,0.00019726,2]
[326551448,1715105567990,-151.0,0.00019726,2]
[326551449,1715105568000,-9384.72,0.00019726,2]
[326551450,1715105568014,-151.0,0.00019726,2]
[326551451,1715105568037,-500.0,0.00019726,2]
[326551452,1715105568061,-500.0,0.00019726,2]
[326551453,1715105568074,-500.0,0.00019726,2]
[326551454,1715105568092,-727.14,0.00019726,2]
[326551455,1715105568105,-1170.08,0.00019726,2]
[326551456,1715105568117,-1941.14,0.00019726,2]
[326551457,1715105568128,-541.81,0.00019726,2]
[326551458,1715105568139,-618.14,0.00019726,2]
[326551459,1715105568170,-3197.79,0.00019726,2]
[326551460,1715105568183,-631.46,0.00019726,2]
[326551461,1715105568193,-1921.54,0.00019726,2]
[326551462,1715105568212,-3099.44,0.00019726,2]
[326551463,1715105568229,-4560.48,0.00019726,2]
[326551464,1715105568252,-913.619557,0.00019726,2]
[326551465,1715105568264,-913.619557,0.00019726,2]
[326551466,1715105568275,-500.0,0.00019726,2]
[326551467,1715105568285,-913.619557,0.00019726,2]
[326551468,1715105568300,-594.96,0.00019726,2]
[326551469,1715105568310,-1063.33,0.00019726,2]
[326551470,1715105568322,-1682.37,0.00019726,2]
[326551471,1715105568333,-3698.43,0.00019726,2]
[326551472,1715105568350,-808.36,0.00019726,2]
[326551473,1715105568361,-913.619557,0.00019726,2]
[326551474,1715105568372,-913.619557,0.00019726,2]
[326551475,1715105568383,-280.35159519,0.00019726,2]
[326551476,1715105568393,-913.619557,0.00019726,2]
[326551477,1715105568425,-500.0,0.00019726,2]
[326551478,1715105568436,-500.0,0.00019726,2]
[326551479,1715105568447,-2956.08,0.00019726,2]
[326551480,1715105568457,-528.47,0.00019726,2]
[326551481,1715105568514,-17712.58,0.00019726,2]
[326551482,1715105568549,-3212.42,0.00019726,2]
[326551483,1715105568567,-1075.62,0.00019726,2]
[326551484,1715105568579,-684.43,0.00019726,2]
[326551485,1715105568589,-2995.55,0.00019726,2]
[326551486,1715105568600,-502.62,0.00019726,2]
[326551487,1715105568615,-500.0,0.00019726,2]
[326551488,1715105568670,-4441.97,0.00019726,2]
[326551489,1715105568700,-1716.07,0.00019726,2]
[326551490,1715105568713,-8698.62,0.00019726,2]
[326551491,1715105568740,-517.61,0.00019726,2]
[326551492,1715105568763,-7988.89,0.00019726,2]
[326551493,1715105568777,-507.43797797,0.00019726,2]
[326551494,1715105568793,-1169.68,0.00019726,2]
[326551495,1715105568813,-500.0,0.00019726,2]
[326551496,1715105568825,-2365.32,0.00019726,2]
[326551497,1715105568835,-1802.09,0.00019726,2]
[326551498,1715105568849,-2488.08,0.00019726,2]
[326551499,1715105568860,-2525.86,0.00019726,2]
[326551500,1715105568876,-747.34,0.00019726,2]
[326551501,1715105568891,-500.0,0.00019726,2]
[326551502,1715105568907,-672.01,0.00019726,2]
[326551503,1715105568923,-500.0,0.00019726,2]
[326551504,1715105568935,-500.0,0.00019726,2]
[326551505,1715105568949,-2196.88,0.00019726,2]
[326551506,1715105568960,-1274.76,0.00019726,2]
[326551507,1715105568970,-2680.71,0.00019726,2]
[326551508,1715105568980,-862.12,0.00019726,2]
[326551509,1715105569014,-1924.04,0.00019726,2]
[326551510,1715105569029,-3541.95,0.00019726,2]
[326551511,1715105569044,-2146.45,0.00019726,2]
[326551512,1715105569055,-1745.92,0.00019726,2]
[326551513,1715105569067,-500.0,0.00019726,2]
[326551514,1715105569077,-3103.92,0.00019726,2]
[326551515,1715105569087,-500.0,0.00019726,2]
[326551516,1715105569097,-1000.0,0.00019726,2]
[326551517,1715105569109,-500.0,0.00019726,2]
[326551518,1715105569119,-756.1,0.00019726,2]
[326551519,1715105569132,-1873.65,0.00019726,2]
[326551520,1715105569144,-2541.93,0.00019726,2]
[326551521,1715105569155,-1454.37,0.00019726,2]
[326551522,1715105569193,-507.12,0.00019726,2]
[326551523,1715105569212,-1355.89,0.00019726,2]
[326551524,1715105569222,-857.95,0.00019726,2]
[326551525,1715105569237,-3339.3,0.00019726,2]
[326551526,1715105569256,-5966.98,0.00019726,2]
[326551527,1715105569270,-508.36278495,0.00019726,2]
[326551528,1715105569281,-500.0,0.00019726,2]
[326551529,1715105569294,-1339.67,0.00019726,2]
[326551530,1715105569305,-635.24,0.00019726,2]
[326551531,1715105569316,-638.44,0.00019726,2]
[326551532,1715105569326,-2977.97,0.00019726,2]
[326551533,1715105569336,-2330.41,0.00019726,2]
[326551534,1715105569350,-602.67,0.00019726,2]
[326551535,1715105569361,-708.04,0.00019726,2]
[326551536,1715105569374,-3811.26,0.00019726,2]
[326551537,1715105569385,-500.0,0.00019726,2]
[326551538,1715105569399,-1963.7,0.00019726,2]
[326551539,1715105569424,-2861.46,0.00019726,2]
[326551540,1715105569435,-1042.73,0.00019726,2]
[326551541,1715105569445,-508.72756474,0.00019726,2]
[326551542,1715105569466,-618.46,0.00019726,2]
[326551543,1715105569477,-3883.38,0.00019726,2]
[326551544,1715105569487,-1352.62,0.00019726,2]
[326551545,1715105569520,-4263.48,0.00019726,2]
[326551546,1715105569534,-2547.66,0.00019726,2]
[326551547,1715105569558,-2140.87,0.00019726,2]
[326551548,1715105569581,-2198.63,0.00019726,2]
[326551549,1715105569600,-709.65,0.00019726,2]
[326551550,1715105569612,-500.0,0.00019726,2]
[326551551,1715105569651,-500.0,0.00019726,2]
[326551552,1715105569677,-500.0,0.00019726,2]
[326551553,1715105569694,-5121.23,0.00019726,2]
[326551554,1715105569757,-3075.75,0.00019726,2]
[326551555,1715105569767,-3237.33,0.00019726,2]
[326551556,1715105569803,-500.0,0.00019726,2]
[326551557,1715105569813,-4095.92,0.00019726,2]
[326551558,1715105569824,-1411.6,0.00019726,2]
[326551559,1715105569835,-388.41747845,0.00019726,2]
[326551560,1715105569860,-1080.84,0.00019726,2]
[326551561,1715105569882,-7176.66,0.00019726,2]
[326551562,1715105569900,-7598.04,0.00019726,2]
[326551563,1715105569915,-823.3,0.00019726,2]
[326551564,1715105569926,-1138.76,0.00019726,2]
[326551565,1715105569943,-1486.57,0.00019726,2]
[326551566,1715105569954,-2761.44,0.00019726,2]
[326551567,1715105569968,-2435.41,0.00019726,2]
[326551568,1715105569978,-2200.2,0.00019726,2]
[326551569,1715105569989,-39317.0,0.00019726,2]
[326551570,1715105569999,-2400.0,0.000198,7]
[326551571,1715105570009,-152.69162425,0.000199,2]
[326551572,1715105570020,-152.69162424,0.000199,2]
[326551573,1715105570040,-400.0,0.000199,7]
[326551574,1715105570055,-2476.30408498,0.0001999,2]
[326551575,1715105570065,-902.13,0.0002,2]
[326551576,1715105570090,-500.0,0.0002,2]
[326551577,1715105570102,-500.0,0.0002,2]
[326551578,1715105570117,-500.0,0.0002,2]
[326551579,1715105570128,-964.26,0.0002,2]
[326551580,1715105570139,-500.0,0.0002,2]
[326551581,1715105570154,-500.0,0.0002,2]
[326551582,1715105570165,-712.97,0.0002,2]
[326551583,1715105570182,-500.0,0.0002,2]
[326551584,1715105570193,-500.0,0.0002,2]
[326551585,1715105570212,-500.0,0.0002,2]
[326551586,1715105570237,-500.0,0.0002,2]
[326551587,1715105570248,-500.0,0.0002,2]
[326551588,1715105570269,-500.0,0.0002,2]
[326551589,1715105570284,-759.45,0.0002,2]